[Event "*** Titled Tuesday Blitz"]
[Site "Chess.com"]
[Date "2021.04.20"]
[Round "8"]
[White "Vanina1989"]
[Black "Sanan_Sjugirov"]
[Result "0-1"]
[WhiteElo "2791"]
[BlackElo "2919"]
[TimeControl "180+1"]
[EndTime "11:27:37 PDT"]
[Termination "Sanan_Sjugirov won on time"]

1. d4 {[%clk 0:03:00.9]} 1... Nf6 {[%clk 0:02:59.4]} 2. c4 {[%clk 0:03:00.8]}
2... e6 {[%clk 0:02:57]} 3. Nf3 {[%clk 0:03:00.7]} 3... c5 {[%clk 0:02:56]} 4.
d5 {[%clk 0:03:00.9]} 4... exd5 {[%clk 0:02:56.1]} 5. cxd5 {[%clk 0:03:01]} 5...
d6 {[%clk 0:02:56.7]} 6. Nc3 {[%clk 0:03:01.5]} 6... g6 {[%clk 0:02:56.2]} 7.
Bf4 {[%clk 0:03:01.4]} 7... a6 {[%clk 0:02:47.1]} 8. a4 {[%clk 0:02:59.7]} 8...
Bg7 {[%clk 0:02:46.1]} 9. e3 {[%clk 0:02:59]} 9... O-O {[%clk 0:02:45.8]} 10. h3
{[%clk 0:02:59.2]} 10... Qe7 {[%clk 0:02:43.5]} 11. Bd3 {[%clk 0:02:55.5]} 11...
Nbd7 {[%clk 0:02:41.7]} 12. O-O {[%clk 0:02:55.6]} 12... Nh5 {[%clk 0:02:34.3]}
13. Bh2 {[%clk 0:02:55.8]} 13... f5 {[%clk 0:02:33.2]} 14. Qc2 {[%clk
0:02:39.8]} 14... Ne5 {[%clk 0:02:26.9]} 15. Nxe5 {[%clk 0:02:27.8]} 15... Bxe5
{[%clk 0:02:27.8]} 16. Bxe5 {[%clk 0:02:16]} 16... Qxe5 {[%clk 0:02:28.7]} 17.
Rae1 {[%clk 0:02:14.6]} 17... Bd7 {[%clk 0:02:24]} 18. a5 {[%clk 0:01:56.5]}
18... Rae8 {[%clk 0:02:21.7]} 19. Qb3 {[%clk 0:01:41.9]} 19... Bc8 {[%clk
0:02:20.1]} 20. f4 {[%clk 0:01:31.3]} 20... Qg7 {[%clk 0:02:13]} 21. Na4 {[%clk
0:01:29.3]} 21... g5 {[%clk 0:02:04.6]} 22. Nb6 {[%clk 0:01:21.9]} 22... gxf4
{[%clk 0:01:59.3]} 23. Nxc8 {[%clk 0:01:21.6]} 23... Rxc8 {[%clk 0:01:58]} 24.
exf4 {[%clk 0:01:22]} 24... c4 {[%clk 0:01:52.7]} 25. Bxc4 {[%clk 0:01:13.4]}
25... Qd4+ {[%clk 0:01:52.3]} 26. Kh2 {[%clk 0:01:13.6]} 26... Rxc4 {[%clk
0:01:28.4]} 27. Qxb7 {[%clk 0:00:58.8]} 27... Rc2 {[%clk 0:01:22.7]} 28. Qe7
{[%clk 0:00:49.2]} 28... Nxf4 {[%clk 0:00:50.9]} 29. Qg5+ {[%clk 0:00:46.5]}
29... Ng6 {[%clk 0:00:50.9]} 30. Re6 {[%clk 0:00:46.6]} 30... Qg7 {[%clk
0:00:34]} 31. b4 {[%clk 0:00:46.1]} 31... f4 {[%clk 0:00:30]} 32. Qg4 {[%clk
0:00:11]} 32... Ne5 {[%clk 0:00:22.2]} 33. Qxg7+ {[%clk 0:00:10.7]} 33... Kxg7
{[%clk 0:00:23.1]} 34. Rxd6 {[%clk 0:00:11]} 34... f3 {[%clk 0:00:22.2]} 35. Re6
{[%clk 0:00:11.1]} 35... Rxg2+ {[%clk 0:00:21.1]} 36. Kh1 {[%clk 0:00:11.6]}
36... Re2 {[%clk 0:00:12.6]} 37. d6 {[%clk 0:00:09.8]} 37... Rf7 {[%clk
0:00:07.8]} 38. b5 {[%clk 0:00:08.4]} 38... axb5 {[%clk 0:00:07.1]} 39. a6
{[%clk 0:00:08.3]} 39... Nc6 {[%clk 0:00:04.6]} 40. Rg1+ {[%clk 0:00:04.4]}
40... Kf8 {[%clk 0:00:04.3]} 41. Rh6 {[%clk 0:00:03.4]} 41... f2 {[%clk
0:00:03.5]} 42. Rf1 {[%clk 0:00:03.9]} 42... Re1 {[%clk 0:00:03.8]} 43. Kg2
{[%clk 0:00:04.3]} 43... Rxf1 {[%clk 0:00:04.1]} 44. Kxf1 {[%clk 0:00:04.5]}
44... b4 {[%clk 0:00:04.6]} 45. Rh4 {[%clk 0:00:03.9]} 45... b3 {[%clk
0:00:04.6]} 46. a7 {[%clk 0:00:01.3]} 46... Rxa7 {[%clk 0:00:04.2]} 47. Rf4+
{[%clk 0:00:01.6]} 47... Rf7 {[%clk 0:00:03.5]} 0-1

[Event "*** Titled Tuesday Blitz"]
[Site "Chess.com"]
[Date "2021.04.20"]
[Round "8"]
[White "ajedrez1101"]
[Black "KacperPolOK"]
[Result "0-1"]
[WhiteElo "2159"]
[BlackElo "2363"]
[TimeControl "180+1"]
[EndTime "11:27:40 PDT"]
[Termination "KacperPolOK won on time"]

1. b3 {[%clk 0:03:00.9]} 1... e5 {[%clk 0:02:47.1]} 2. Bb2 {[%clk 0:03:00]} 2...
Nc6 {[%clk 0:02:48]} 3. e3 {[%clk 0:02:59.2]} 3... Nf6 {[%clk 0:02:44.7]} 4. Bb5
{[%clk 0:02:57.9]} 4... d6 {[%clk 0:02:37.9]} 5. d4 {[%clk 0:02:52.9]} 5... exd4
{[%clk 0:02:35.3]} 6. Qxd4 {[%clk 0:02:52.5]} 6... Be7 {[%clk 0:02:32.4]} 7. Nc3
{[%clk 0:02:47.8]} 7... O-O {[%clk 0:02:25.9]} 8. Qd2 {[%clk 0:02:33.7]} 8... a6
{[%clk 0:02:07.2]} 9. Bxc6 {[%clk 0:02:31.6]} 9... bxc6 {[%clk 0:02:07.1]} 10.
Nf3 {[%clk 0:02:24.1]} 10... Bg4 {[%clk 0:02:02.6]} 11. h3 {[%clk 0:02:23.4]}
11... Bh5 {[%clk 0:01:55.8]} 12. O-O-O {[%clk 0:02:16.9]} 12... a5 {[%clk
0:01:43.8]} 13. g4 {[%clk 0:01:55.6]} 13... Bg6 {[%clk 0:01:43.4]} 14. Nd4
{[%clk 0:01:45.7]} 14... c5 {[%clk 0:01:38]} 15. Nf5 {[%clk 0:01:21.6]} 15...
Re8 {[%clk 0:01:30.7]} 16. f4 {[%clk 0:01:06.9]} 16... Qd7 {[%clk 0:01:28.1]}
17. Nxe7+ {[%clk 0:01:04]} 17... Qxe7 {[%clk 0:01:19.7]} 18. f5 {[%clk
0:01:04.1]} 18... Qxe3 {[%clk 0:01:19.6]} 19. Qxe3 {[%clk 0:01:00.1]} 19... Rxe3
{[%clk 0:01:20.5]} 20. fxg6 {[%clk 0:01:00.3]} 20... hxg6 {[%clk 0:01:21.3]} 21.
Nd5 {[%clk 0:00:57.9]} 21... Nxd5 {[%clk 0:01:18]} 22. Rxd5 {[%clk 0:00:58.8]}
22... Rae8 {[%clk 0:01:18.4]} 23. Rd3 {[%clk 0:00:51.4]} 23... Re2 {[%clk
0:01:17]} 24. Rd2 {[%clk 0:00:48]} 24... R2e3 {[%clk 0:01:15.3]} 25. a4 {[%clk
0:00:42.5]} 25... Rf3 {[%clk 0:01:12.8]} 26. h4 {[%clk 0:00:38.4]} 26... Re4
{[%clk 0:01:07.9]} 27. Rg2 {[%clk 0:00:35.5]} 27... Kh7 {[%clk 0:00:59.6]} 28.
g5 {[%clk 0:00:29.4]} 28... c4 {[%clk 0:00:55]} 29. bxc4 {[%clk 0:00:28.5]}
29... Rxc4 {[%clk 0:00:54.7]} 30. h5 {[%clk 0:00:28.5]} 30... gxh5 {[%clk
0:00:55.3]} 31. Rxh5+ {[%clk 0:00:28.3]} 31... Kg6 {[%clk 0:00:55.7]} 32. Rh8
{[%clk 0:00:21.3]} 32... d5 {[%clk 0:00:39.6]} 33. Rg8 {[%clk 0:00:16]} 33... d4
{[%clk 0:00:39.5]} 34. Rg4 {[%clk 0:00:14.8]} 34... c5 {[%clk 0:00:38.5]} 35.
Rg2 {[%clk 0:00:13.5]} 35... Rxa4 {[%clk 0:00:37.9]} 36. Rc8 {[%clk 0:00:11.6]}
36... Rc4 {[%clk 0:00:36.9]} 37. Kd2 {[%clk 0:00:08.3]} 37... a4 {[%clk
0:00:36.6]} 38. Bc1 {[%clk 0:00:07.3]} 38... Rfc3 {[%clk 0:00:28.7]} 39. Kd1
{[%clk 0:00:04.4]} 39... d3 {[%clk 0:00:28.8]} 40. Ra8 {[%clk 0:00:03.7]} 40...
dxc2+ {[%clk 0:00:26.6]} 41. Ke2 {[%clk 0:00:04]} 41... Kf5 {[%clk 0:00:21]} 42.
Rf2+ {[%clk 0:00:03.9]} 42... Kg6 {[%clk 0:00:14.8]} 43. Ra6+ {[%clk 0:00:04.3]}
43... Kh5 {[%clk 0:00:13.7]} 44. Rh2+ {[%clk 0:00:04.3]} 44... Kg4 {[%clk
0:00:13.7]} 45. Rg2+ {[%clk 0:00:04.5]} 45... Kf5 {[%clk 0:00:13.7]} 46. Rf2+
{[%clk 0:00:04.6]} 46... Ke5 {[%clk 0:00:13.6]} 47. Ra7 {[%clk 0:00:03.7]} 47...
Re4+ {[%clk 0:00:13]} 48. Kf1 {[%clk 0:00:02.5]} 48... Rh3 {[%clk 0:00:11.6]}
49. Raxf7 {[%clk 0:00:01.6]} 49... Rh1+ {[%clk 0:00:11]} 50. Kg2 {[%clk
0:00:01.9]} 50... Rxc1 {[%clk 0:00:11.7]} 51. Re7+ {[%clk 0:00:02.5]} 51... Kd4
{[%clk 0:00:10.1]} 52. Rxc2 {[%clk 0:00:01.6]} 52... Rxc2+ {[%clk 0:00:09.7]}
0-1

[Event "*** Titled Tuesday Blitz"]
[Site "Chess.com"]
[Date "2021.04.20"]
[Round "8"]
[White "vovachesss"]
[Black "MFBerna"]
[Result "1-0"]
[WhiteElo "2691"]
[BlackElo "2504"]
[TimeControl "180+1"]
[EndTime "11:27:41 PDT"]
[Termination "vovachesss won by resignation"]

1. Nf3 {[%clk 0:03:00.9]} 1... Nf6 {[%clk 0:01:55.1]} 2. d4 {[%clk 0:02:58.6]}
2... g6 {[%clk 0:01:53.6]} 3. Nc3 {[%clk 0:02:53.2]} 3... d5 {[%clk 0:01:51]} 4.
Bf4 {[%clk 0:02:52.6]} 4... Bg7 {[%clk 0:01:51]} 5. Nb5 {[%clk 0:02:52.7]} 5...
Na6 {[%clk 0:01:50.7]} 6. e3 {[%clk 0:02:53.2]} 6... O-O {[%clk 0:01:50.7]} 7.
Be2 {[%clk 0:02:51.7]} 7... c6 {[%clk 0:01:50.2]} 8. Nc3 {[%clk 0:02:51.6]} 8...
Nc7 {[%clk 0:01:48.5]} 9. O-O {[%clk 0:02:50.5]} 9... Ne6 {[%clk 0:01:40.3]} 10.
Be5 {[%clk 0:02:49.7]} 10... Ne8 {[%clk 0:01:28.6]} 11. Bg3 {[%clk 0:02:25.7]}
11... Nd6 {[%clk 0:01:28]} 12. h3 {[%clk 0:02:18.1]} 12... b6 {[%clk 0:01:12.5]}
13. Nb1 {[%clk 0:01:52.7]} 13... Ne4 {[%clk 0:01:07]} 14. Bh2 {[%clk 0:01:52.6]}
14... c5 {[%clk 0:01:03]} 15. c3 {[%clk 0:01:48.8]} 15... Bb7 {[%clk 0:00:47.2]}
16. Nbd2 {[%clk 0:01:48.6]} 16... Nxd2 {[%clk 0:00:37.8]} 17. Qxd2 {[%clk
0:01:45.9]} 17... Qd7 {[%clk 0:00:20.2]} 18. Ne5 {[%clk 0:01:45.6]} 18... Qd8
{[%clk 0:00:16.8]} 19. Rfd1 {[%clk 0:01:45.4]} 19... Rc8 {[%clk 0:00:16.8]} 20.
Bf3 {[%clk 0:01:40.6]} 20... Ng5 {[%clk 0:00:14]} 21. Be2 {[%clk 0:01:21.5]}
21... Ne4 {[%clk 0:00:13.6]} 22. Qe1 {[%clk 0:01:20]} 22... f6 {[%clk
0:00:12.8]} 23. Nd3 {[%clk 0:01:17.9]} 23... cxd4 {[%clk 0:00:09.2]} 24. exd4
{[%clk 0:01:16.4]} 24... Qd7 {[%clk 0:00:09.7]} 25. f3 {[%clk 0:01:12.9]} 25...
Nd6 {[%clk 0:00:09.8]} 26. Bf1 {[%clk 0:01:05]} 26... Rfe8 {[%clk 0:00:09.3]}
27. Qh4 {[%clk 0:00:58.2]} 27... Nc4 {[%clk 0:00:06.9]} 28. Re1 {[%clk
0:00:57.3]} 28... e5 {[%clk 0:00:06.3]} 29. b3 {[%clk 0:00:47.6]} 29... e4
{[%clk 0:00:05.9]} 30. bxc4 {[%clk 0:00:47]} 30... exd3 {[%clk 0:00:05.9]} 31.
Bxd3 {[%clk 0:00:42.8]} 31... dxc4 {[%clk 0:00:05]} 32. Be4 {[%clk 0:00:40.7]}
32... Bd5 {[%clk 0:00:04]} 33. Re2 {[%clk 0:00:26.4]} 33... f5 {[%clk 0:00:04]}
34. Bxd5+ {[%clk 0:00:26.6]} 34... Qxd5 {[%clk 0:00:04.9]} 35. Rae1 {[%clk
0:00:27.1]} 35... Qf7 {[%clk 0:00:03.1]} 36. Re7 {[%clk 0:00:18.9]} 36... Rxe7
{[%clk 0:00:02.4]} 37. Rxe7 {[%clk 0:00:19.8]} 37... Qf6 {[%clk 0:00:02.8]} 38.
Qxf6 {[%clk 0:00:20]} 38... Bxf6 {[%clk 0:00:03.2]} 39. Rxa7 {[%clk 0:00:20.9]}
39... Re8 {[%clk 0:00:02.4]} 40. Kf2 {[%clk 0:00:16.9]} 40... Bh4+ {[%clk
0:00:03]} 41. Bg3 {[%clk 0:00:05.5]} 41... Bg5 {[%clk 0:00:03.5]} 42. Be5 {[%clk
0:00:05.4]} 42... Bh4+ {[%clk 0:00:02.7]} 43. Ke3 {[%clk 0:00:04.6]} 43... Bg5+
{[%clk 0:00:02.3]} 44. f4 {[%clk 0:00:04.9]} 44... Bh4 {[%clk 0:00:02.5]} 45. d5
{[%clk 0:00:05]} 45... Be1 {[%clk 0:00:02.8]} 46. Kd4 {[%clk 0:00:05.4]} 46...
Bf2+ {[%clk 0:00:02.8]} 47. Kxc4 {[%clk 0:00:05.7]} 47... Rc8+ {[%clk
0:00:03.3]} 48. Kd3 {[%clk 0:00:06.2]} 48... b5 {[%clk 0:00:01.8]} 49. Rg7+
{[%clk 0:00:06.7]} 49... Kf8 {[%clk 0:00:01.8]} 50. Rxh7 {[%clk 0:00:07.2]}
50... Rd8 {[%clk 0:00:02.2]} 51. Rh8+ {[%clk 0:00:07.3]} 51... Ke7 {[%clk
0:00:02.6]} 52. Bf6+ {[%clk 0:00:08]} 52... Kxf6 {[%clk 0:00:02.5]} 53. Rxd8
{[%clk 0:00:08.9]} 1-0

[Event "*** Titled Tuesday Blitz"]
[Site "Chess.com"]
[Date "2021.04.20"]
[Round "8"]
[White "vanyakuba"]
[Black "ZeZacarias"]
[Result "1-0"]
[WhiteElo "2397"]
[BlackElo "2166"]
[TimeControl "180+1"]
[EndTime "11:27:44 PDT"]
[Termination "vanyakuba won on time"]

1. e4 {[%clk 0:03:00.9]} 1... e6 {[%clk 0:02:49]} 2. d4 {[%clk 0:03:00.7]} 2...
d5 {[%clk 0:02:49.1]} 3. exd5 {[%clk 0:03:01.1]} 3... exd5 {[%clk 0:02:48.2]} 4.
Nf3 {[%clk 0:03:02]} 4... Bg4 {[%clk 0:02:35.9]} 5. h3 {[%clk 0:03:00.7]} 5...
Bh5 {[%clk 0:02:32.3]} 6. Qe2+ {[%clk 0:03:00.5]} 6... Qe7 {[%clk 0:02:28.8]} 7.
Be3 {[%clk 0:03:00.1]} 7... Nc6 {[%clk 0:02:20.3]} 8. Nc3 {[%clk 0:02:59.2]}
8... O-O-O {[%clk 0:02:14.5]} 9. O-O-O {[%clk 0:02:58.5]} 9... Nf6 {[%clk
0:02:10.6]} 10. g4 {[%clk 0:02:49.8]} 10... Bg6 {[%clk 0:02:09.8]} 11. Ne5
{[%clk 0:02:49.6]} 11... Qe6 {[%clk 0:02:01.3]} 12. f4 {[%clk 0:02:44.8]} 12...
Be4 {[%clk 0:01:58.1]} 13. Bg2 {[%clk 0:02:12.4]} 13... Bxg2 {[%clk 0:01:52.2]}
14. Qxg2 {[%clk 0:02:13.3]} 14... Bb4 {[%clk 0:01:52.3]} 15. Ne2 {[%clk
0:02:00.2]} 15... Ne4 {[%clk 0:01:48]} 16. f5 {[%clk 0:01:54.1]} 16... Qe8
{[%clk 0:01:43.6]} 17. Bf4 {[%clk 0:01:13.5]} 17... g5 {[%clk 0:01:25]} 18. fxg6
{[%clk 0:01:01.9]} 18... hxg6 {[%clk 0:01:24.4]} 19. Ng3 {[%clk 0:00:56.3]}
19... f6 {[%clk 0:01:18]} 20. Nxe4 {[%clk 0:00:39.2]} 20... dxe4 {[%clk
0:01:11]} 21. Nxc6 {[%clk 0:00:28.5]} 21... Qxc6 {[%clk 0:01:11.9]} 22. c3
{[%clk 0:00:25.3]} 22... Bd6 {[%clk 0:01:05.3]} 23. Rhf1 {[%clk 0:00:20.1]}
23... Qd5 {[%clk 0:00:59.2]} 24. Kb1 {[%clk 0:00:17.3]} 24... f5 {[%clk
0:00:49.6]} 25. gxf5 {[%clk 0:00:08.1]} 25... gxf5 {[%clk 0:00:49.4]} 26. Bg5
{[%clk 0:00:08.4]} 26... Rdg8 {[%clk 0:00:44]} 27. h4 {[%clk 0:00:08.7]} 27...
Rxh4 {[%clk 0:00:35.4]} 28. Qd2 {[%clk 0:00:06.8]} 28... Rh2 {[%clk 0:00:29.6]}
29. Qc1 {[%clk 0:00:05.8]} 29... Qf7 {[%clk 0:00:14.2]} 30. c4 {[%clk
0:00:05.3]} 30... Bb4 {[%clk 0:00:08.1]} 31. Bf4 {[%clk 0:00:04.8]} 31... Bd6
{[%clk 0:00:07.6]} 32. Bxh2 {[%clk 0:00:04.6]} 32... Bxh2 {[%clk 0:00:07.7]} 33.
Rde1 {[%clk 0:00:05]} 33... Qg6 {[%clk 0:00:06.3]} 34. Qc2 {[%clk 0:00:04.5]}
34... Bd6 {[%clk 0:00:05.6]} 35. c5 {[%clk 0:00:04.6]} 35... Be7 {[%clk
0:00:05.6]} 36. Qf2 {[%clk 0:00:04.1]} 36... Rf8 {[%clk 0:00:05.4]} 37. d5
{[%clk 0:00:04.5]} 37... Bg5 {[%clk 0:00:05.1]} 38. Qd4 {[%clk 0:00:03.5]} 38...
e3 {[%clk 0:00:04.6]} 39. d6 {[%clk 0:00:02.7]} 39... cxd6 {[%clk 0:00:04.7]}
40. cxd6 {[%clk 0:00:03.6]} 40... Kb8 {[%clk 0:00:05.2]} 41. Rc1 {[%clk
0:00:03.3]} 41... f4+ {[%clk 0:00:04.9]} 42. Ka1 {[%clk 0:00:02.9]} 42... e2
{[%clk 0:00:03.5]} 43. Qc5 {[%clk 0:00:02.8]} 43... Qe6 {[%clk 0:00:01.6]} 44.
Qc7+ {[%clk 0:00:02.9]} 44... Ka8 {[%clk 0:00:01.4]} 45. Rfe1 {[%clk 0:00:02.6]}
45... f3 {[%clk 0:00:01.4]} 46. d7 {[%clk 0:00:03.1]} 46... Bxc1 {[%clk
0:00:01.3]} 47. Rxc1 {[%clk 0:00:01.4]} 1-0

[Event "*** Titled Tuesday Blitz"]
[Site "Chess.com"]
[Date "2021.04.20"]
[Round "8"]
[White "LifeIsAllAboutChess23"]
[Black "Agoking701"]
[Result "0-1"]
[WhiteElo "2136"]
[BlackElo "2306"]
[TimeControl "180+1"]
[EndTime "11:27:44 PDT"]
[Termination "Agoking701 won by resignation"]

1. d4 {[%clk 0:03:00.9]} 1... Nf6 {[%clk 0:02:59]} 2. Bg5 {[%clk 0:02:59.8]}
2... g6 {[%clk 0:02:59.9]} 3. Bxf6 {[%clk 0:02:55.6]} 3... exf6 {[%clk
0:03:00.8]} 4. e3 {[%clk 0:02:52.4]} 4... d5 {[%clk 0:02:55.9]} 5. Nd2 {[%clk
0:02:47.5]} 5... c6 {[%clk 0:02:53.7]} 6. Bd3 {[%clk 0:02:45.6]} 6... Be6 {[%clk
0:02:47.7]} 7. Ne2 {[%clk 0:02:42.9]} 7... Nd7 {[%clk 0:02:46.1]} 8. h4 {[%clk
0:02:41.5]} 8... f5 {[%clk 0:02:25]} 9. h5 {[%clk 0:02:40.8]} 9... Bd6 {[%clk
0:02:24.1]} 10. hxg6 {[%clk 0:02:40]} 10... fxg6 {[%clk 0:02:25]} 11. Nf4 {[%clk
0:02:31.5]} 11... Bf7 {[%clk 0:02:21.3]} 12. g4 {[%clk 0:02:19.1]} 12... Qe7
{[%clk 0:01:43.2]} 13. gxf5 {[%clk 0:02:15.5]} 13... Bxf4 {[%clk 0:00:52.2]} 14.
fxg6 {[%clk 0:02:12.4]} 14... Bg8 {[%clk 0:00:47.8]} 15. g7 {[%clk 0:01:12.5]}
15... Qxg7 {[%clk 0:00:42.3]} 16. exf4 {[%clk 0:01:09.4]} 16... Qxd4 {[%clk
0:00:33.4]} 17. Qe2+ {[%clk 0:01:04]} 17... Kf8 {[%clk 0:00:29.5]} 18. O-O-O
{[%clk 0:01:00.5]} 18... Re8 {[%clk 0:00:28.9]} 19. Qf3 {[%clk 0:00:54.4]} 19...
Qf6 {[%clk 0:00:22]} 20. Rde1 {[%clk 0:00:45.7]} 20... Rxe1+ {[%clk 0:00:20.1]}
21. Rxe1 {[%clk 0:00:40.9]} 21... Bf7 {[%clk 0:00:21]} 22. Nf1 {[%clk
0:00:33.3]} 22... Nc5 {[%clk 0:00:17.3]} 23. Ng3 {[%clk 0:00:30.4]} 23... Nxd3+
{[%clk 0:00:16.4]} 24. cxd3 {[%clk 0:00:29.1]} 24... h5 {[%clk 0:00:12.8]} 25.
Qe3 {[%clk 0:00:23.9]} 25... h4 {[%clk 0:00:11.3]} 26. Qc5+ {[%clk 0:00:23.3]}
26... Kg7 {[%clk 0:00:10.2]} 27. Ne2 {[%clk 0:00:16.5]} 27... Bh5 {[%clk
0:00:10.3]} 28. Rg1+ {[%clk 0:00:16.2]} 28... Kh6 {[%clk 0:00:09.6]} 29. Nd4
{[%clk 0:00:15]} 29... Qxf4+ {[%clk 0:00:09.3]} 30. Kb1 {[%clk 0:00:14.9]} 30...
Qf6 {[%clk 0:00:07.5]} 31. Qd6 {[%clk 0:00:11.6]} 31... Rf8 {[%clk 0:00:03.2]}
32. Nf5+ {[%clk 0:00:11]} 32... Kh7 {[%clk 0:00:03.4]} 33. Rg7+ {[%clk
0:00:10.8]} 33... Kh8 {[%clk 0:00:03.9]} 34. Qxf6 {[%clk 0:00:09.3]} 34... Rxf6
{[%clk 0:00:04.8]} 35. Rg5 {[%clk 0:00:09.3]} 35... Bg6 {[%clk 0:00:05.1]} 36.
Ne7 {[%clk 0:00:09.2]} 36... Kg7 {[%clk 0:00:05]} 37. Nxg6 {[%clk 0:00:09]}
37... Rxg6 {[%clk 0:00:05.9]} 38. Rh5 {[%clk 0:00:09.3]} 38... Rh6 {[%clk
0:00:05]} 39. Rg5+ {[%clk 0:00:09.6]} 39... Kf6 {[%clk 0:00:04.9]} 40. Rg2
{[%clk 0:00:09.5]} 40... h3 {[%clk 0:00:05.5]} 41. Rh2 {[%clk 0:00:10.1]} 41...
Kf5 {[%clk 0:00:06.2]} 42. Kc2 {[%clk 0:00:10.4]} 42... Kf4 {[%clk 0:00:06.8]}
43. Kd2 {[%clk 0:00:10.6]} 43... Kf3 {[%clk 0:00:07.2]} 44. Ke1 {[%clk
0:00:11.1]} 44... d4 {[%clk 0:00:07.5]} 45. Kf1 {[%clk 0:00:11.1]} 45... c5
{[%clk 0:00:08.2]} 46. b3 {[%clk 0:00:10.6]} 46... b5 {[%clk 0:00:08.6]} 47. Rh1
{[%clk 0:00:10.9]} 47... a5 {[%clk 0:00:09]} 48. Rg1 {[%clk 0:00:10.7]} 48... h2
{[%clk 0:00:08.3]} 49. Rh1 {[%clk 0:00:11.1]} 49... Rh3 {[%clk 0:00:07.7]} 50.
a3 {[%clk 0:00:11.3]} 50... Rh4 {[%clk 0:00:07.4]} 51. Ke1 {[%clk 0:00:11.3]}
51... Kg2 {[%clk 0:00:07.7]} 52. f4 {[%clk 0:00:10.5]} 52... Kxh1 {[%clk
0:00:06.3]} 53. f5 {[%clk 0:00:10.7]} 53... Kg2 {[%clk 0:00:06.6]} 54. f6 {[%clk
0:00:10.8]} 54... Rf4 {[%clk 0:00:06.4]} 0-1

[Event "*** Titled Tuesday Blitz"]
[Site "Chess.com"]
[Date "2021.04.20"]
[Round "8"]
[White "BJthechessgod"]
[Black "Keks2017"]
[Result "1-0"]
[WhiteElo "2299"]
[BlackElo "2442"]
[TimeControl "180+1"]
[EndTime "11:27:45 PDT"]
[Termination "BJthechessgod won by checkmate"]

1. e4 {[%clk 0:03:00.9]} 1... e6 {[%clk 0:02:58.3]} 2. d4 {[%clk 0:02:56.9]}
2... d5 {[%clk 0:02:58.2]} 3. Nc3 {[%clk 0:02:52.6]} 3... Nf6 {[%clk 0:02:57.4]}
4. e5 {[%clk 0:02:50.7]} 4... Nfd7 {[%clk 0:02:57.3]} 5. f4 {[%clk 0:02:51.6]}
5... c5 {[%clk 0:02:55.2]} 6. Nf3 {[%clk 0:02:52.5]} 6... Nc6 {[%clk 0:02:54.6]}
7. Be3 {[%clk 0:02:50.5]} 7... Qb6 {[%clk 0:02:52.7]} 8. Qd2 {[%clk 0:02:48.2]}
8... cxd4 {[%clk 0:02:42.8]} 9. Nxd4 {[%clk 0:02:40.8]} 9... Nxd4 {[%clk
0:02:40.4]} 10. Bxd4 {[%clk 0:02:40.7]} 10... Qd8 {[%clk 0:02:34.7]} 11. Qf2
{[%clk 0:02:29.7]} 11... a6 {[%clk 0:02:31]} 12. Bd3 {[%clk 0:02:25.4]} 12...
Qc7 {[%clk 0:02:27.5]} 13. O-O {[%clk 0:02:23.8]} 13... Nc5 {[%clk 0:02:26.3]}
14. Be2 {[%clk 0:02:18.9]} 14... g6 {[%clk 0:02:23.6]} 15. Rad1 {[%clk 0:02:14]}
15... b5 {[%clk 0:02:23.2]} 16. a3 {[%clk 0:02:11.8]} 16... Bd7 {[%clk
0:02:21.1]} 17. Bf3 {[%clk 0:02:08.3]} 17... Rc8 {[%clk 0:02:19.8]} 18. g4
{[%clk 0:02:05.5]} 18... Bg7 {[%clk 0:02:13.3]} 19. f5 {[%clk 0:01:54.8]} 19...
Bxe5 {[%clk 0:02:10.6]} 20. Nxd5 {[%clk 0:01:43.7]} 20... exd5 {[%clk
0:02:05.1]} 21. Bxe5 {[%clk 0:01:39.4]} 21... Qxe5 {[%clk 0:02:04.9]} 22. Rxd5
{[%clk 0:01:36.3]} 22... Qc7 {[%clk 0:02:00.4]} 23. Re1+ {[%clk 0:01:31.5]}
23... Kf8 {[%clk 0:01:56.8]} 24. Qd4 {[%clk 0:01:20.3]} 24... Rg8 {[%clk
0:01:55.3]} 25. Qe3 {[%clk 0:01:19.5]} 25... Kg7 {[%clk 0:01:45.6]} 26. Qc3+
{[%clk 0:01:00.8]} 26... Kf8 {[%clk 0:01:41]} 27. Qe3 {[%clk 0:00:58.3]} 27...
Kg7 {[%clk 0:01:40]} 28. b4 {[%clk 0:00:40.4]} 28... Ne6 {[%clk 0:01:25.9]} 29.
fxe6 {[%clk 0:00:29.9]} 29... Bxe6 {[%clk 0:01:25.8]} 30. Qd4+ {[%clk
0:00:22.5]} 30... Kf8 {[%clk 0:01:22.8]} 31. Rxe6 {[%clk 0:00:18.2]} 31... fxe6
{[%clk 0:01:21.5]} 32. Rd7 {[%clk 0:00:18.8]} 32... Ke8 {[%clk 0:00:59.9]} 33.
Rxc7 {[%clk 0:00:17.2]} 33... Rxc7 {[%clk 0:01:00]} 34. Qd6 {[%clk 0:00:16.9]}
34... Re7 {[%clk 0:00:56.9]} 35. Bc6+ {[%clk 0:00:16.3]} 35... Kf7 {[%clk
0:00:55.8]} 36. Qf4+ {[%clk 0:00:16.5]} 36... Kg7 {[%clk 0:00:55.1]} 37. Qe5+
{[%clk 0:00:13.7]} 37... Kf7 {[%clk 0:00:54.4]} 38. g5 {[%clk 0:00:13.8]} 38...
Rg7 {[%clk 0:00:48]} 39. Qf6+ {[%clk 0:00:13.8]} 39... Kg8 {[%clk 0:00:48.1]}
40. Qe5 {[%clk 0:00:10.3]} 40... Rgf7 {[%clk 0:00:47.4]} 41. Be4 {[%clk
0:00:07.4]} 41... Rf8 {[%clk 0:00:44.2]} 42. Bd3 {[%clk 0:00:04.9]} 42... Ref7
{[%clk 0:00:42.4]} 43. c4 {[%clk 0:00:04]} 43... Rf3 {[%clk 0:00:40.5]} 44.
Qxe6+ {[%clk 0:00:03.7]} 44... Kg7 {[%clk 0:00:40.6]} 45. Qe5+ {[%clk 0:00:04]}
45... Kg8 {[%clk 0:00:40.8]} 46. Be2 {[%clk 0:00:04.2]} 46... R3f5 {[%clk
0:00:39.6]} 47. Qe6+ {[%clk 0:00:03.8]} 47... Kg7 {[%clk 0:00:40]} 48. cxb5
{[%clk 0:00:04.4]} 48... axb5 {[%clk 0:00:39.9]} 49. Qe7+ {[%clk 0:00:04.1]}
49... R8f7 {[%clk 0:00:39.7]} 50. Qe6 {[%clk 0:00:04.5]} 50... Rxg5+ {[%clk
0:00:39.7]} 51. Kh1 {[%clk 0:00:04.8]} 51... Rgf5 {[%clk 0:00:39.7]} 52. h4
{[%clk 0:00:04.9]} 52... Rf4 {[%clk 0:00:39.2]} 53. Bxb5 {[%clk 0:00:05.3]}
53... Rxh4+ {[%clk 0:00:38.9]} 54. Kg2 {[%clk 0:00:05.8]} 54... Rh5 {[%clk
0:00:37.6]} 55. Bc4 {[%clk 0:00:05.8]} 55... Rg5+ {[%clk 0:00:37.6]} 56. Kh3
{[%clk 0:00:04.6]} 56... Rf3+ {[%clk 0:00:36.5]} 57. Kh4 {[%clk 0:00:04.6]}
57... Rgg3 {[%clk 0:00:35.7]} 58. Qe7+ {[%clk 0:00:04.4]} 58... Kh6 {[%clk
0:00:35.3]} 59. Qe6 {[%clk 0:00:02.6]} 59... Rg1 {[%clk 0:00:31.3]} 60. Qb6
{[%clk 0:00:01.5]} 60... Rf2 {[%clk 0:00:28.4]} 61. Qxf2 {[%clk 0:00:01.5]}
61... g5+ {[%clk 0:00:27.2]} 62. Kh3 {[%clk 0:00:01.5]} 62... Ra1 {[%clk
0:00:26.6]} 63. Kh2 {[%clk 0:00:02.4]} 63... Rxa3 {[%clk 0:00:25.7]} 64. Qf6+
{[%clk 0:00:03.1]} 64... Kh5 {[%clk 0:00:25.4]} 65. Be2+ {[%clk 0:00:03.8]}
65... Kh4 {[%clk 0:00:25]} 66. Qh6# {[%clk 0:00:03.7]} 1-0